bitfinex/quotes_ETHUSD_20260121
["timestamp","ask_amount","ask_price","bid_price","bid_amount"]
[1768960210333,13.97564033,2971.1,2970.6,0.555]
[1768960210537,12.70512757,2970.9,2970.4,1.11]
[1768960210739,12.70512757,2970.9,2970.6,1e-08]
[1768960212971,0.002,2971.0,2970.6,12.00983531]
[1768960213139,0.002,2971.0,2970.6,12.56483531]
[1768960215744,0.002,2971.0,2970.6,13.11983531]
[1768960218336,0.002,2971.0,2970.6,13.67483531]
[1768960218768,12.7624993,2970.9,2970.4,1.11]
[1768960219069,12.7624993,2970.7,2970.4,1.11]
[1768960219446,12.7624993,2970.7,2970.4,1e-08]
[1768960220476,12.7624993,2970.7,2970.3,3.33]
[1768960220676,12.7624993,2970.5,2970.3,3.33]
[1768960220971,12.7624993,2970.5,2970.3,3.885]
[1768960223164,12.7624993,2970.5,2970.3,4.44]
[1768960223363,12.7624993,2970.9,2970.3,16.78022732]
[1768960224153,12.7624993,2970.9,2970.5,0.001]
[1768960224361,0.002,2970.7,2970.3,16.78022732]
[1768960224555,0.002,2970.7,2970.4,12.34022732]
[1768960225559,12.7644993,2970.7,2970.4,0.555]
[1768960225763,0.002,2970.7,2970.4,0.555]
[1768960226261,12.7644993,2970.7,2970.4,0.555]
[1768960228175,12.7644993,2970.7,2970.4,1e-08]
[1768960228488,12.79388974,2970.6,2970.4,1e-08]
[1768960228649,12.7624993,2970.6,2970.3,4.44]
[1768960230690,12.7624993,2970.6,2970.3,4.995]
[1768960232274,12.7624993,2970.6,2970.2,0.001]
[1768960232275,4.9794249,2970.6,2970.2,0.001]
[1768960232486,12.7624993,2970.5,2970.2,0.001]
[1768960232983,12.7624993,2970.5,2970.1,0.555]
[1768960233193,12.7624993,2970.5,2970.1,1.11]
[1768960234056,3.91736477,2970.6,2969.9,1.665]
[1768960234057,13.31249929,2970.0,2969.9,1.665]
[1768960234255,14.64374922,2970.0,2969.8,0.555]
[1768960234475,13.31249929,2970.0,2969.8,2e-08]
[1768960235581,13.31249929,2970.0,2969.8,0.55500002]
[1768960236160,0.54999999,2970.0,2969.8,0.55500002]
[1768960238294,0.54999999,2970.0,2969.8,1.11000002]
[1768960240185,12.7624993,2970.1,2969.8,1.11000002]
[1768960240381,12.7624993,2970.1,2969.8,1e-08]
[1768960240586,13.57477363,2970.1,2969.8,0.55500001]
[1768960241183,13.57477363,2970.1,2969.8,0.00500003]
[1768960242300,12.7624993,2970.1,2969.8,0.00500003]
[1768960242999,12.7624993,2970.1,2969.8,0.56000003]
[1768960243200,3.36690031,2970.1,2969.8,1e-08]
[1768960243402,12.79388974,2970.0,2969.5,1.10418111]
[1768960243606,12.7624993,2970.0,2969.5,1.10418111]
[1768960243907,14.4336783,2970.0,2969.5,1.10418111]
[1768960245506,14.4336783,2970.0,2969.5,1.65918111]
[1768960245701,14.4336783,2970.0,2969.5,14.28047175]
[1768960245874,12.7624993,2970.0,2969.5,14.28047175]
[1768960246074,12.46879273,2970.1,2969.5,14.28047175]
[1768960246300,13.02079273,2970.1,2969.5,14.28047175]
[1768960247110,12.46879273,2970.2,2969.5,14.28047175]
[1768960247276,13.02079273,2970.2,2969.5,14.28047175]
[1768960248113,0.552,2970.2,2969.6,12.62129064]
[1768960248598,0.552,2970.2,2969.8,12.62129064]
[1768960248792,0.002,2969.9,2969.8,12.62129064]
[1768960250811,0.002,2969.9,2969.8,13.17629064]
[1768960252080,0.002,2969.9,2969.8,0.555]
[1768960252280,0.002,2969.9,2969.7,0.001]
[1768960252814,12.46879273,2969.8,2969.5,2e-08]
[1768960253191,12.47079273,2969.9,2969.5,0.55500002]
[1768960253799,12.46879273,2969.8,2969.5,1e-08]
[1768960255716,12.46879273,2969.7,2969.5,1e-08]
[1768960258099,12.46879273,2969.6,2969.5,1e-08]
[1768960258311,12.46879273,2969.6,2969.4,1e-08]
[1768960259007,12.46879273,2969.6,2969.2,1e-08]
[1768960259008,12.46879273,2969.4,2969.2,1e-08]
[1768960259191,12.46879273,2969.6,2969.2,1e-08]
[1768960259396,14.78752005,2969.6,2969.2,1e-08]
[1768960260309,10.71833689,2969.8,2969.2,1e-08]
[1768960260310,16.50837188,2969.8,2969.2,12.62129065]
[1768960260622,12.50018317,2969.7,2969.2,12.62129065]
[1768960260820,12.46879273,2969.7,2969.2,13.17629065]
[1768960260982,12.46879273,2969.6,2969.2,13.17629065]
[1768960261179,0.002,2969.7,2969.2,13.17629065]
[1768960261397,12.47079273,2969.7,2969.2,13.17629065]
[1768960261596,14.1772212,2969.7,2969.2,13.17629065]
[1768960263328,14.1772212,2969.7,2969.2,13.73129065]
[1768960263538,12.46879273,2969.6,2969.2,1.11000001]
[1768960265717,12.46879273,2969.6,2969.2,1.66500001]
[1768960267904,12.46879273,2969.5,2969.2,1e-08]
[1768960268099,12.46879273,2969.5,2969.2,0.55500001]
[1768960268401,12.46879273,2969.5,2968.9,13.17229064]
[1768960268602,12.50018317,2969.4,2968.8,13.68057915]
[1768960268799,12.46879273,2969.4,2968.8,1.05928851]
[1768960269048,12.46879273,2969.2,2968.8,1.05928851]
[1768960270352,12.46879273,2969.2,2968.8,14.23557915]
[1768960271522,13.715672,2969.3,2968.8,14.23557915]
[1768960271729,12.46879273,2969.3,2968.8,14.23557915]
[1768960272938,12.46879273,2969.3,2968.8,2.16928851]
[1768960273418,12.46879273,2969.3,2968.8,2.16829051]
[1768960274135,12.46879273,2969.3,2968.8,1.664002]
[1768960274330,13.90526014,2969.3,2968.8,1.664002]
[1768960275438,13.90526014,2969.3,2968.8,2.219002]
[1768960277740,12.85415614,2969.2,2968.8,2.219002]
[1768960278034,12.85415614,2969.2,2968.8,2.774002]
[1768960280522,0.03139044,2969.1,2968.8,3.329002]
[1768960280725,12.85415614,2969.1,2968.8,1e-08]
[1768960280927,14.47950417,2969.1,2968.8,1e-08]
[1768960284848,12.88554658,2969.0,2968.8,1e-08]
[1768960285018,12.85415614,2969.0,2968.8,1e-08]
[1768960285745,12.85415614,2969.0,2968.6,14.47173465]
[1768960286639,12.85415614,2969.0,2968.6,1.665]
[1768960286836,1.78475451,2968.9,2968.5,12.80673465]
[1768960287019,14.63891065,2968.9,2968.5,12.80673465]
[1768960288049,14.63891065,2968.9,2968.5,13.36173465]
[1768960290529,14.63891065,2968.9,2968.5,13.91673465]
[1768960291015,1.78475451,2968.9,2968.5,13.91673465]
[1768960291223,0.002,2969.2,2968.6,12.80673465]
[1768960292542,0.002,2969.2,2968.6,13.35773465]
[1768960293567,0.002,2969.2,2968.6,13.91273465]
[1768960293864,14.17336219,2969.2,2968.6,0.555]
[1768960294031,14.14197175,2969.2,2968.6,0.555]
[1768960294354,14.14197175,2969.2,2968.6,13.36173465]
[1768960294718,2.81715487,2968.6,2968.5,13.91673465]
[1768960295123,2.81715487,2968.6,2968.5,1.11]
[1768960295735,2.81715487,2968.6,2968.3,1.05928851]
[1768960296132,2.81715487,2968.6,2968.4,12.80673465]
[1768960296340,0.552,2969.1,2968.4,12.80673465]
[1768960296538,1.46939718,2969.0,2968.4,12.80673465]
[1768960298668,1.46939718,2969.0,2968.4,13.36173465]
[1768960299693,1.46939718,2969.0,2968.7,0.002]
[1768960299976,1.47039718,2969.0,2968.7,12.80873465]
[1768960300440,0.001,2969.0,2968.7,12.80873465]
[1768960300645,0.002,2969.2,2968.8,12.80673465]
[1768960301254,0.002,2969.2,2968.8,13.36173465]
[1768960302588,0.002,2969.6,2969.3,12.80673465]
[1768960302750,0.002,2969.6,2969.3,12.47798519]
[1768960303644,0.002,2969.9,2969.7,12.80673465]
[1768960303845,0.002,2970.1,2969.8,12.80673465]
[1768960305084,0.002,2970.5,2969.9,12.14914046]
[1768960306376,0.002,2970.5,2969.9,12.70414046]
[1768960307376,0.002,2970.9,2970.0,6.1350153]
[1768960307680,0.002,2970.9,2970.2,12.14914046]
[1768960307883,0.002,2970.9,2970.4,12.14914046]
[1768960308746,0.002,2971.2,2970.7,12.14914046]
[1768960308944,0.002,2971.4,2970.8,12.14914046]
[1768960311086,0.002,2971.4,2970.8,12.70414046]
[1768960312481,0.001,2971.2,2970.8,12.70414046]
[1768960313483,0.001,2971.2,2970.8,13.25914046]
[1768960315558,0.001,2971.2,2970.9,0.551]
[1768960315559,12.94181555,2971.2,2970.9,0.551]
[1768960315861,0.001,2971.2,2970.9,12.70014046]
[1768960316189,0.001,2971.2,2970.9,13.25514046]
[1768960318457,0.001,2971.2,2970.9,13.81014046]
[1768960319791,0.002,2971.4,2971.0,12.14914046]
[1768960320285,0.002,2971.6,2971.2,12.14914046]
[1768960320494,0.002,2971.6,2971.2,12.70014046]
[1768960320671,0.002,2971.6,2971.2,13.25514046]
[1768960323163,0.002,2971.6,2971.2,13.81014046]
[1768960323590,0.002,2971.9,2971.3,12.14914046]
[1768960323760,14.23729711,2971.9,2971.2,1.661]
[1768960324388,0.002,2971.4,2971.2,1.661]
[1768960324769,0.002,2971.4,2971.2,13.81014046]
[1768960325463,0.002,2971.4,2971.2,14.36514046]
[1768960326696,12.94081555,2971.3,2971.0,0.001]
[1768960326894,12.94081555,2971.1,2970.8,1.11]
[1768960327093,12.94081555,2971.1,2970.2,12.14914046]
[1768960327280,12.94081555,2971.1,2970.3,12.14914046]
[1768960327979,12.94081555,2971.1,2970.4,1.11]
[1768960328190,12.94081555,2971.1,2970.4,13.25914046]
[1768960328798,0.002,2971.4,2970.4,13.25914046]
[1768960329001,1.29428156,2971.3,2970.4,13.25914046]
[1768960329503,12.94081555,2971.3,2970.4,13.25914046]
[1768960330198,0.002,2971.4,2970.4,13.25914046]
[1768960330402,0.002,2971.4,2970.7,12.14914046]
[1768960330604,0.002,2971.4,2970.9,12.14914046]
[1768960332905,0.002,2971.4,2970.9,12.70414046]
[1768960333070,1.29648156,2971.4,2970.9,12.70414046]
[1768960333269,0.002,2971.4,2970.9,12.70414046]
[1768960335303,0.002,2971.4,2970.9,13.25914046]
[1768960336583,0.002,2971.2,2970.9,13.25914046]
[1768960337579,0.002,2971.2,2970.9,13.81414046]
[1768960339624,0.002,2971.6,2971.0,12.65580472]
[1768960339779,0.002,2971.6,2971.2,12.65580472]
[1768960340119,0.002,2972.1,2971.3,13.69909323]
[1768960341583,0.002,2972.1,2971.4,12.65580472]
[1768960342690,0.002,2972.1,2971.4,13.21080472]
[1768960342892,0.002,2972.1,2971.6,12.65580472]
[1768960345186,11.93198629,2972.1,2971.6,13.21080472]
[1768960345514,11.93198629,2972.1,2971.6,0.555]
[1768960346312,0.002,2972.6,2972.0,12.65580472]
[1768960346487,11.93198629,2972.6,2972.1,14.53488672]
[1768960346687,0.002,2972.6,2972.1,14.53488672]
[1768960346888,0.002,2972.6,2972.3,12.65580472]
[1768960347707,0.002,2972.6,2972.3,13.21080472]
[1768960348313,0.002,2972.6,2972.3,13.71390118]
[1768960349286,0.002,2972.4,2972.3,13.71390118]
[1768960349617,11.93198629,2972.8,2972.3,13.71390118]
[1768960349812,11.93198629,2972.8,2972.3,13.21080472]
[1768960350014,11.93198629,2972.8,2972.3,13.76180472]
[1768960350217,11.93198629,2972.8,2972.3,14.31680472]
[1768960352184,11.92998629,2973.0,2972.3,5.02539005]
[1768960352390,11.92998629,2973.7,2972.8,12.65580472]
[1768960352618,11.92998629,2973.7,2972.8,13.20680472]
[1768960355017,0.553,2973.8,2972.9,12.65580472]
[1768960355018,0.002,2973.8,2972.9,12.65580472]
[1768960356019,11.93198629,2973.8,2973.1,12.65580472]
[1768960356202,11.93198629,2973.8,2973.1,13.97648519]
[1768960357129,11.96137673,2973.7,2972.8,0.555]
[1768960357310,11.92998629,2973.7,2972.9,0.551]
[1768960357487,11.92998629,2973.7,2972.8,13.76580472]
[1768960357692,11.92998629,2973.7,2972.8,14.31680472]
[1768960357893,11.92998629,2973.5,2972.8,14.31680472]
[1768960358295,0.002,2973.8,2972.9,12.65580472]
[1768960359922,0.002,2973.8,2972.9,13.21080472]
[1768960360217,11.93198629,2973.8,2973.0,0.551]
[1768960360421,11.92998629,2973.6,2973.0,0.551]
[1768960360934,11.93198629,2973.6,2973.0,13.20680472]
[1768960361427,11.93198629,2973.6,2973.0,12.65580472]
[1768960361921,0.002,2973.6,2973.0,12.65580472]
[1768960362425,0.002,2973.6,2973.0,13.21080472]
[1768960364028,11.93198629,2973.6,2973.0,13.21080472]
[1768960364394,13.4616552,2973.6,2973.0,1.106]
[1768960364796,13.4616552,2973.6,2973.0,1.661]
[1768960365198,13.4616552,2973.6,2973.0,1.11]
[1768960365700,11.99983622,2973.4,2973.0,1.11]
[1768960366721,11.99983622,2973.4,2973.0,1e-08]
[1768960366920,13.25491984,2973.3,2973.0,1e-08]
[1768960367517,1.25508362,2973.3,2973.0,1e-08]
[1768960367722,11.99983622,2973.4,2973.0,1e-08]
[1768960368230,11.99983622,2973.5,2973.0,1e-08]
[1768960369830,11.99983622,2973.5,2973.0,0.55500001]
[1768960371010,0.03139044,2973.4,2973.0,0.55500001]
[1768960371314,12.03122666,2973.4,2973.0,0.55500001]
[1768960371523,11.99983622,2973.4,2973.0,0.55500001]
[1768960372431,13.20001984,2973.4,2973.0,0.55500001]
[1768960372630,13.20001984,2973.4,2973.0,1.11000001]
[1768960372933,13.20001984,2973.4,2973.0,1e-08]
[1768960372934,12.55083622,2973.3,2973.0,1e-08]
[1768960373108,12.55083622,2973.3,2972.6,0.49228851]
[1768960373303,11.99983622,2973.1,2972.6,0.49228851]
[1768960373524,11.99983622,2973.1,2972.2,12.53937469]
[1768960373842,11.99983622,2973.1,2972.3,13.65337469]
[1768960374343,2.65942901,2973.2,2972.6,11.98837469]
[1768960374549,0.002,2973.6,2972.7,11.98837469]
[1768960374843,1.20238362,2973.6,2972.7,11.98837469]
[1768960375048,1.20238362,2973.6,2972.7,12.54337469]
[1768960376152,1.20238362,2973.6,2972.9,11.98837469]
[1768960376451,13.20221984,2973.6,2972.9,11.98837469]
[1768960377549,13.20221984,2973.6,2972.9,12.54337469]
[1768960377751,1.65650377,2973.5,2972.9,12.54337469]
[1768960380221,1.65650377,2973.5,2972.9,13.09837469]
[1768960380441,12.00183622,2973.6,2972.9,13.09837469]
[1768960381316,11.99983622,2973.5,2972.9,13.09837469]
[1768960381523,11.99983622,2973.1,2972.5,0.49228851]
[1768960381956,11.99983622,2972.9,2972.3,1.665]
[1768960382457,12.55104562,2972.9,2972.3,1.665]
[1768960382636,12.55104562,2972.9,2972.3,2.22]
[1768960383747,12.55104562,2972.9,2972.3,2e-08]
[1768960383748,11.99983622,2972.8,2972.3,2e-08]
[1768960384130,11.99983622,2972.8,2972.5,0.001]
[1768960384334,11.99983622,2972.4,2971.8,11.98737669]
[1768960384952,11.99983622,2972.4,2971.6,12.54337469]
[1768960385141,13.25525984,2972.4,2971.7,0.555]
[1768960385338,13.25525984,2972.4,2971.6,0.555]
[1768960385734,11.99983622,2972.2,2971.6,0.555]
[1768960386034,14.08725964,2972.1,2971.6,0.555]
[1768960387567,14.08725964,2972.1,2971.6,1.11]
[1768960390563,14.08725964,2972.1,2971.6,1.665]
[1768960393105,14.08725964,2972.1,2971.6,2.22]
[1768960395594,14.08725964,2972.1,2971.6,2.775]
[1768960395755,12.907481,2971.9,2971.6,2.775]
[1768960396739,12.907481,2971.9,2971.6,2.773]
[1768960396956,12.907481,2971.9,2971.6,1e-08]
[1768960401478,12.907481,2971.8,2971.6,1e-08]
[1768960402760,12.907481,2971.8,2971.5,1e-08]
[1768960402962,12.907481,2971.7,2971.5,1e-08]
[1768960403162,12.907481,2971.7,2971.1,12.26506086]
[1768960403163,12.907481,2971.7,2971.1,11.54423096]
[1768960403383,13.459481,2971.7,2971.0,12.26906086]
[1768960404195,12.907481,2971.5,2971.0,12.26906086]
[1768960407206,1.76810629,2971.8,2971.0,12.82406086]
[1768960407375,0.552,2971.9,2971.0,14.27296695]
[1768960407707,12.93887144,2971.8,2971.0,14.27296695]
[1768960407886,12.907481,2971.8,2971.0,13.37906086]
[1768960408204,12.93887144,2971.7,2971.0,13.37906086]
[1768960408403,12.907481,2971.7,2971.0,13.37906086]
[1768960408700,9.48972248,2972.0,2971.3,11.71406086]
[1768960408879,0.002,2971.7,2971.3,11.71406086]
[1768960410307,0.002,2971.7,2971.3,12.26906086]
[1768960411785,12.94087144,2971.7,2971.3,12.26906086]
[1768960411985,14.20376814,2971.7,2971.3,12.26906086]
[1768960412699,14.20376814,2971.7,2971.3,12.82406086]
[1768960415288,14.20376814,2971.7,2971.3,1.665]
[1768960415289,12.907481,2971.6,2971.3,1.665]
[1768960415504,0.00099999,2971.2,2971.0,1.660007]
[1768960416197,0.00099999,2971.2,2971.0,13.37406786]
[1768960416510,0.00099999,2971.2,2971.1,11.71406086]
[1768960416714,0.00099999,2971.2,2971.0,1.660007]
[1768960417122,0.00099999,2971.2,2971.0,13.37406786]
[1768960417814,0.00099999,2971.2,2970.4,13.37906086]
[1768960417815,12.907481,2971.0,2970.4,13.37906086]
[1768960417993,14.86579457,2971.0,2970.4,13.37906086]
[1768960418617,14.86579457,2971.0,2970.0,11.70868418]
[1768960419030,12.907481,2970.7,2970.0,11.70868418]
[1768960419217,13.459481,2970.7,2970.0,11.70868418]
[1768960420502,13.459481,2970.7,2970.0,12.26368418]
[1768960420819,15.75429291,2970.7,2970.2,0.001]
[1768960421002,15.75429291,2970.7,2970.2,11.71506086]
[1768960422817,15.75429291,2970.7,2970.2,12.27006086]
[1768960423542,12.907481,2971.1,2970.2,12.27006086]
[1768960423819,13.459481,2971.1,2970.2,12.27006086]
[1768960425398,13.459481,2971.1,2970.2,12.82506086]
[1768960425894,11.95785278,2971.0,2970.2,12.82506086]
[1768960426094,13.5454086,2971.0,2970.2,12.82506086]
[1768960427711,13.5454086,2971.0,2970.2,13.38006086]
[1768960428727,1.58755582,2971.0,2970.2,13.38006086]
[1768960429031,13.5454086,2971.0,2970.2,13.38006086]
[1768960430300,13.5454086,2971.0,2970.2,13.93506086]
[1768960430496,0.552,2971.1,2970.3,12.80341483]
[1768960430803,12.50985278,2971.1,2970.3,12.80341483]
[1768960431719,11.95785278,2971.0,2970.3,12.80341483]
[1768960432295,11.95785278,2971.0,2970.5,0.001]
[1768960432623,11.95985278,2971.0,2970.5,12.80441483]
[1768960432821,11.95985278,2971.0,2970.5,13.35941483]
[1768960435631,11.95985278,2971.0,2970.5,13.91441483]
[1768960438098,11.95985278,2971.0,2970.5,14.46941483]
[1768960439394,11.95785278,2970.9,2970.5,1.666]
[1768960440345,11.95785278,2970.9,2970.5,14.46941483]
[1768960440502,11.95785278,2970.9,2970.5,15.02441483]
[1768960440700,11.95985278,2971.0,2970.5,15.02441483]
[1768960441552,11.98924322,2970.9,2970.2,15.02441483]
[1768960441699,11.98924322,2970.9,2970.2,2.221]
[1768960441700,11.95785278,2970.9,2970.2,2.221]
[1768960441909,11.95785278,2970.7,2970.2,2.221]
[1768960442110,11.95785278,2970.5,2970.2,2.221]
[1768960442436,11.95785278,2970.9,2970.2,2.221]
[1768960442625,14.44435588,2971.0,2970.2,2.221]
[1768960442626,11.95785278,2970.7,2970.2,2.221]
[1768960443010,12.50985278,2970.7,2970.2,2.776]
[1768960443415,11.98924322,2970.6,2970.2,2.776]
[1768960443630,11.95785278,2970.6,2970.2,2.776]
[1768960444651,11.95785278,2970.6,2970.4,0.001]
[1768960444852,13.80947539,2970.6,2970.2,15.57941483]
[1768960445451,1.85162261,2970.6,2970.2,16.13441483]
[1768960445754,12.50985278,2970.7,2970.2,16.13441483]
[1768960446131,12.50985278,2970.7,2970.2,3.331]
[1768960446463,12.50985278,2970.7,2970.2,16.13441483]
[1768960448040,12.50985278,2970.7,2970.2,16.68941483]
[1768960450741,12.50985278,2970.7,2970.2,17.24441483]
[1768960450945,14.09764193,2970.7,2970.2,17.24441483]
[1768960451665,11.98924322,2970.6,2970.2,4.441]
[1768960451964,11.95785278,2970.6,2970.2,4.441]
[1768960452535,11.95785278,2970.6,2970.2,3.93134018]
[1768960452751,11.95785278,2970.6,2970.2,2.91036272]
[1768960452939,13.36761697,2970.6,2970.2,2.30952033]
[1768960453141,13.36761697,2970.6,2970.2,1.32550586]
[1768960453458,13.36761697,2970.6,2970.0,13.18958757]
[1768960453836,11.95785278,2970.5,2970.0,0.38617274]
[1768960454032,11.95785278,2970.3,2969.5,12.80341483]
[1768960454360,11.95785278,2970.0,2969.5,12.80341483]
[1768960455331,11.95785278,2970.0,2969.5,13.35841483]
[1768960455527,11.95785278,2970.0,2969.5,0.555]
[1768960455928,11.24441164,2969.8,2969.3,0.555]
[1768960456332,11.24441164,2969.8,2969.3,12.60805881]
[1768960457835,11.24441164,2969.8,2969.3,13.16305881]
[1768960458036,12.4240528,2969.8,2969.3,13.16305881]
[1768960460750,12.4240528,2969.8,2969.3,13.71805881]
[1768960463572,12.4240528,2969.8,2969.3,14.27305881]
[1768960465270,12.4240528,2969.8,2969.3,1.665]
[1768960465471,12.4240528,2969.8,2969.4,8.68178321]
[1768960465641,1.29760528,2969.7,2969.4,8.68178321]
[1768960465842,1.29760528,2969.7,2969.4,5.31050761]
[1768960466064,1.29760528,2969.7,2969.4,2.49423201]
[1768960468861,1.29760528,2969.7,2969.4,3.04923201]
[1768960470171,1.29760528,2969.7,2969.5,0.002]
[1768960470368,1.29760528,2969.7,2969.4,3.04923201]
[1768960470682,0.001,2969.6,2969.4,3.04923201]
[1768960471454,0.001,2969.6,2969.4,3.60423201]
[1768960471651,0.552,2969.9,2969.5,12.05305881]
[1768960474100,0.552,2969.9,2969.5,12.60805881]
[1768960474902,11.79641164,2969.9,2969.5,12.60805881]
[1768960476495,11.79641164,2969.9,2969.5,13.16305881]
[1768960478768,11.64346447,2970.4,2969.5,3.31450588]
[1768960478956,6.13329672,2970.5,2969.6,11.34626049]
[1768960478957,12.19546447,2970.3,2969.6,11.34626049]
[1768960479160,11.64346447,2970.1,2969.5,13.01126049]
[1768960479395,11.64346447,2969.9,2969.5,1.665]
[1768960479612,12.19546447,2969.9,2969.5,1.665]
[1768960479929,11.64346447,2969.8,2969.5,1.665]
[1768960480130,11.64346447,2969.5,2968.9,11.34626049]
[1768960480422,11.64346447,2969.3,2968.7,11.34826049]
[1768960480593,11.64346447,2969.3,2968.8,11.90126049]
[1768960481186,11.64346447,2969.3,2968.8,12.45626049]
[1768960482533,11.64346447,2969.8,2968.8,13.70208654]
[1768960482693,12.19746447,2969.7,2968.8,12.45626049]
[1768960483488,12.19746447,2969.7,2968.8,13.01126049]
[1768960483790,11.64346447,2969.5,2968.8,13.01126049]
[1768960484418,11.64346447,2969.5,2968.8,1.665]
[1768960485399,11.64346447,2969.5,2968.8,12.95417748]
[1768960486199,13.47634059,2969.5,2968.8,13.50917748]
[1768960487327,11.56310256,2969.3,2968.8,13.50917748]
[1768960487619,11.56310256,2969.3,2968.8,2.22]
[1768960488822,11.56310256,2969.2,2968.5,11.29117748]
[1768960489026,6.68329672,2969.3,2968.4,0.555]
[1768960489027,11.56310256,2968.9,2968.4,0.555]
[1768960489223,12.11510256,2968.9,2968.4,0.555]
[1768960489389,12.11510256,2968.9,2968.4,11.84417748]
[1768960491417,12.11510256,2968.9,2968.4,12.39917748]
[1768960493832,12.11510256,2968.9,2968.4,12.95417748]
[1768960495013,0.001,2968.7,2968.4,12.95417748]
[1768960496335,0.001,2968.7,2968.4,13.50917748]
[1768960498720,0.001,2968.7,2968.4,14.06417748]
[1768960499910,11.56410256,2968.7,2968.4,2.775]
[1768960500605,0.001,2968.7,2968.4,2.775]
[1768960501222,0.001,2968.7,2968.4,3.33]
[1768960503943,0.001,2968.7,2968.4,3.885]
[1768960505234,11.56410256,2968.7,2968.4,3.885]
[1768960506519,11.56310256,2968.3,2967.4,0.555]
[1768960506817,3.37259925,2968.4,2967.5,11.28917748]
[1768960506818,11.56310256,2968.1,2967.5,11.28917748]
[1768960507219,11.56310256,2968.1,2967.4,0.555]
[1768960507620,6.68329672,2968.2,2967.4,0.555]
[1768960507621,11.56310256,2967.8,2967.4,0.555]
[1768960507821,12.11510256,2967.7,2967.4,0.555]
[1768960508265,13.93974249,2967.7,2966.9,11.84417748]
[1768960508551,11.56310256,2967.5,2966.9,11.84417748]
[1768960508944,11.56310256,2967.5,2966.9,12.39917748]
[1768960511324,11.56310256,2967.5,2966.9,12.95417748]
[1768960513842,11.56310256,2967.5,2966.9,13.50917748]
[1768960516140,11.56310256,2967.5,2966.9,14.06417748]
[1768960517850,11.55833349,2967.5,2967.0,11.20552466]
[1768960518945,11.55833349,2967.5,2967.1,11.20752466]
[1768960519352,11.28089433,2967.6,2967.1,11.20752466]
[1768960520853,0.553,2967.6,2967.1,11.20752466]
[1768960521057,11.28089433,2967.7,2967.2,12.38177713]
[1768960521252,11.28089433,2968.1,2967.4,11.20552466]
[1768960521555,11.83389433,2968.1,2967.4,11.20552466]
[1768960521730,11.83389433,2968.1,2967.6,11.20552466]
[1768960522832,0.001,2968.5,2967.6,11.20552466]
[1768960523038,0.553,2968.4,2967.6,11.20552466]
[1768960523436,0.001,2968.5,2967.7,11.20552466]
[1768960523641,11.28189433,2968.5,2967.9,11.20552466]
[1768960524230,11.28189433,2968.5,2967.9,12.38127713]
[1768960525143,11.28189433,2968.5,2967.8,0.552]
[1768960525461,11.28189433,2968.5,2967.8,11.75752466]
[1768960525658,11.28189433,2968.5,2967.6,6.68629672]
[1768960525842,11.28189433,2968.5,2967.6,1.107]
[1768960526044,11.28189433,2968.5,2967.7,11.20552466]
[1768960526261,0.001,2968.5,2967.7,12.43677713]
[1768960526559,0.001,2968.5,2967.7,12.99177713]
[1768960526936,11.28189433,2968.5,2967.7,12.99177713]
[1768960528856,11.28189433,2968.5,2967.7,13.54677713]
[1768960529372,11.28189433,2968.5,2967.8,11.20552466]
[1768960529535,0.001,2968.5,2968.0,11.20552466]
[1768960529736,11.31328477,2968.5,2967.7,1.11]
[1768960529957,11.28189433,2968.5,2967.7,1.11]
[1768960530263,11.28089433,2968.3,2967.7,1.11]
[1768960530436,11.28089433,2968.1,2967.7,1.11]
[1768960530859,11.28089433,2968.1,2967.2,0.555]
[1768960530860,11.28089433,2967.9,2967.2,0.555]
[1768960531166,11.28089433,2967.7,2967.2,0.3851701]
[1768960531354,11.28089433,2967.7,2967.2,0.9401701]
[1768960532158,11.28089433,2967.7,2967.3,0.002]
[1768960533363,11.28089433,2967.7,2967.3,11.20752466]
[1768960533767,11.28089433,2967.7,2967.3,0.557]
[1768960533969,12.46428376,2967.6,2967.3,0.557]
[1768960534469,12.46428376,2967.6,2967.3,1e-08]
[1768960536050,12.46428376,2967.6,2967.3,0.55500001]
[1768960536257,12.46428376,2967.6,2967.3,1e-08]
[1768960543475,12.46428376,2967.6,2967.2,1e-08]
[1768960543660,11.28089433,2967.4,2967.2,1e-08]
[1768960544575,12.52732271,2967.5,2967.2,1e-08]
[1768960545682,12.57611101,2967.4,2967.2,1e-08]
[1768960545889,12.57611101,2967.4,2967.1,2.01e-06]
[1768960546189,0.001,2967.4,2967.1,12.46633142]
[1768960548281,0.001,2967.4,2967.1,13.02133142]
[1768960549275,12.57611101,2967.4,2967.1,0.55500201]
[1768960550805,13.83372211,2967.4,2967.0,0.47419465]
[1768960551584,14.38672211,2967.4,2967.0,0.47419465]
[1768960552873,14.38672211,2967.4,2967.0,12.94052406]
[1768960553071,0.554,2967.4,2967.0,12.94052406]
[1768960553254,0.554,2967.4,2967.0,13.49552406]
[1768960553462,0.001,2967.4,2967.0,13.49552406]
[1768960555821,0.001,2967.4,2967.0,14.05052406]
[1768960558190,0.001,2967.4,2967.0,14.60552406]
[1768960558391,0.001,2967.2,2967.0,14.60552406]
[1768960560563,0.001,2967.2,2967.0,15.16052406]
[1768960561362,0.553,2967.8,2967.1,12.46632941]
[1768960563193,0.553,2967.8,2967.1,13.02132941]
[1768960563562,12.57511101,2968.2,2967.2,12.46632941]
[1768960563790,0.58439044,2968.1,2967.2,12.46632941]
[1768960564183,0.001,2968.3,2967.6,12.46632941]
[1768960564384,0.001,2968.3,2967.8,12.46632941]
[1768960564890,0.554,2968.5,2967.9,12.46632941]
[1768960565094,0.001,2968.5,2967.9,12.46632941]
[1768960565495,12.60750145,2968.5,2967.9,0.555]
[1768960565796,12.57611101,2968.5,2967.4,12.37593072]
[1768960565996,7.8,2968.0,2967.4,12.37593072]
[1768960566491,7.8,2968.0,2967.5,12.46632941]
[1768960566694,7.8,2968.0,2967.5,6.13962538]
[1768960566876,0.001,2968.5,2967.6,0.552]
[1768960567076,0.001,2968.5,2967.6,13.01832941]
[1768960567077,12.57611101,2968.5,2967.6,13.01832941]
[1768960567269,12.57611101,2968.5,2967.6,3.14178506]
[1768960567469,12.57611101,2968.5,2967.7,12.46632941]
[1768960568095,0.001,2968.5,2967.7,13.02132941]
[1768960569201,12.57611101,2968.5,2967.7,13.02132941]